Cogmind - Beta 15 @@@ ROGUE MODE // 2025.07.02 @ 22:17:10 Player: BlobtheGreat Result: Destroyed by 4W-D06(R) with Subdweller Shrapnel Launcher Performance ------------- Evolutions (0) 0 Regions Visited (1) 200 Robots Destroyed (13) 65 Value Destroyed (300) 300 Prototype IDs (0) 0 Alien Tech Used (0) 0 Bonus (0) 0 TOTAL SCORE: 565 Bonus ------- None Cogmind --------- Core Integrity 0/250 Matter 277/300 Energy 99/100 System Corruption 0% Temperature Cool (0) Movement Core (700) Ox13 Location -10/Materials Parts ------- > --- POWER (1) -------- (None) > --- PROPULSION (2) --- (None) > --- UTILITY (2) ------ High-capacity Storage Unit > --- WEAPON (2) ------- Light Assault Rifle > --- INVENTORY (20) --- Light Treads Light Treads Light Treads Light Treads Light Treads Light Treads Aluminum Leg Aluminum Leg Wheel Wheel Seismic Detector Peak State ------------ > --- POWER ------------ Light Ion Engine > --- PROPULSION ------- Light Treads Light Treads > --- UTILITY ---------- High-capacity Storage Unit Seismic Detector > --- WEAPON ----------- Assault Rifle Light Assault Rifle > --- INVENTORY -------- Light Treads Light Treads Light Treads Light Treads Light Treads Light Treads Light Treads Aluminum Leg Aluminum Leg Wheel Wheel Seismic Detector EM Pulse Gun EM Pulse Gun [Rating: 8] Favorites ----------- Power Light Ion Engine Engine Light Ion Engine Propulsion Light Treads Treads Light Treads Utility Seismic Detector Device Seismic Detector Storage High-capacity Storage Unit Weapon Light Assault Rifle Energy Gun EM Pulse Gun Ballistic Gun Light Assault Rifle Build | -11 -10 ------- Run | Yrd Mat Slots Evolved . | . . Power . | . . Propulsion . | . . Utility . | . . Weapon . | . . Parts Attached 13 | 7 6 Power 2 | 1 1 Engine 2 | 1 1 Core . | . . Reactor . | . . Propulsion 2 | 2 . Treads 2 | 2 . Leg . | . . Wheel . | . . Hover . | . . Flight . | . . Utility 4 | 2 2 Device 1 | 1 . Storage 3 | 1 2 Processor . | . . Hackware . | . . Protection . | . . Artifact . | . . Weapon 5 | 2 3 Energy Gun 2 | . 2 Energy Cannon . | . . Ballistic Gun 3 | 2 1 Ballistic Cannon . | . . Launcher . | . . Special Weapon . | . . Impact Weapon . | . . Slashing Weapon . | . . Piercing Weapon . | . . Special Melee Weapon . | . . Unidentified Prototypes . | . . Parts Lost 9 | . 9 Power 2 | . 2 Propulsion 2 | . 2 Utility 1 | . 1 Weapon 4 | . 4 Highest Loss Streak 8 | . 8 To Critical Strikes . | . . Average Backups 9 | 5 10 Power . | . . Propulsion 5 | 3 6 Utility . | . 1 Weapon 1 | . 1 Tool/Special . | . . Unused Backups 12 | . 12 Power . | . . Propulsion 11 | . 11 Utility 1 | . 1 Weapon . | . . Tool/Special . | . . Average Slot Usage (%) 95 | . 95 Engine 12 | . 12 Treads 26 | . 26 Device 13 | . 13 Storage 14 | . 14 Ballistic Gun 27 | . 27 Peak Build Rating 8 | 7 8 Average Rating 6 | 6 7 On Entrance 3 | . 7 Naked Turns . | . . Heaviest Build 47 | 12 47 Greatest Support 40 | 40 40 Greatest Overweight (x) 1 | . 1 Average Overweight (x) . | . . Largest Inventory Capacity 20 | 8 20 Average Capacity 15 | 7 18 Most Carried 15 | 7 15 Average Carried 9 | 5 10 Final Capacity 20 | 8 20 Final Carried 11 | 7 11 Class Distribution -------------------- 100% | Mutant Dominant Class ---------------- Mutant | -10/Materials Resources | -11 -10 ----------- Run | Yrd Mat Matter Collected 495 | 306 189 Remotely . | . . Salvage Created 614 | 117 497 Parts 32 | 7 25 Haulers Intercepted 2 | . 2 Recyclers Shooed 2 | . 2 Parts Field Recycled . | . . Retrieved Matter . | . . Parts Self-Destructed . | . . Prevented . | . . Kills | -11 -10 ------- Run | Yrd Mat Combat Hostiles Destroyed 7 | . 7 Guns 7 | . 7 Classes Destroyed 5 | 2 3 Tunneler 2 | 2 . Hauler 2 | . 2 Recycler 2 | 1 1 Grunt 6 | . 6 Subdweller 1 | . 1 Best Kill Streak 3 | 2 3 Combat Bots Only 3 | . 3 Max Kills in Single Turn 1 | 1 1 Gunslinging . | . . Exploded . | . . Melee . | . . Uniques/NPCs Destroyed . | . . Combat | -11 -10 -------- Run | Yrd Mat Hostile Shots Fired 65 | . 65 Missed 21 | . 21 Hits 44 | . 44 Projectile 44 | . 44 AOE 12 | . 12 Critical Strikes 1 | . 1 Damage Taken 1064 | . 1064 Core 313 | . 313 Absorbed by Shields . | . . Core Remaining (%) 100 | 100 . Volleys Fired 63 | 9 54 Largest 2 | 2 2 Hottest 60 | 40 60 Shots Fired 118 | 18 100 Gun 118 | 18 100 Cannon . | . . Launcher . | . . Special . | . . Kinetic 113 | 18 95 Thermal . | . . Explosive . | . . Electromagnetic 5 | . 5 Robot Hit Streak 10 | 4 10 Robot Miss Streak 6 | 1 6 Penetration Max . | . . Secondary Targets 4 | . 4 Max Gunslinging Chain 1 | . 1 Shots Hit Robots 81 | 12 69 Core Hits 38 | 6 32 Critical Kills . | . . Critical Parts Destroyed . | . . Critical Strikes . | . . Melee Attacks . | . . Impact . | . . Slashing . | . . Piercing . | . . Sneak Attacks . | . . Combat Hostiles . | . . Follow-up Attacks . | . . Damage Inflicted 823 | 134 689 Guns 823 | 134 689 Cannons . | . . Explosions . | . . Melee . | . . Ramming . | . . Kinetic 779 | 134 645 Thermal . | . . Explosive . | . . Electromagnetic 44 | . 44 Impact . | . . Slashing . | . . Piercing . | . . Highest Corruption . | . . Average Corruption . | . . Corruption Purged . | . . Corruption Blocked . | . . Overload Shots . | . . Overflow Damage . | . . Projectiles . | . . Explosions . | . . Melee . | . . Knockbacks . | . . Impact . | . . Kinetic . | . . Secondary . | . . Self-Inflicted Damage . | . . Shots . | . . Rammed . | . . Targets Rammed . | . . Kicked . | . . Crushed . | . . Highest Temperature 40 | . 40 Average Temperature 14 | . 14 Received Heat Transfer 135 | . 135 Siege Activations . | . . Martial Activations . | . . Shielding Activations . | . . Robots Disrupted . | . . Combat Hostiles . | . . Robots Corrupted . | . . Combat Hostiles . | . . Parts Fried . | . . Impact Corruptions . | . . Robots Melted . | . . Combat Hostiles . | . . Parts Melted . | . . Heat Transferred . | . . Parts Sabotaged . | . . Parts Stolen . | . . Parts Stripped . | . . Power Chain Reactions . | . . Alert | -11 -10 ------- Run | Yrd Mat Maximum Alert Level . | . . Low Security (%) 100 | 100 100 Level 1 . | . . Level 2 . | . . Level 3 . | . . Level 4 . | . . Level 5 . | . . High Security . | . . Max Security . | . . Peak Influence 92 | 5 92 Initial . | . . Average 18 | . 23 Influence Increases 232 | 15 217 Destroy 0b10 Robot/C 120 | . 120 Destroy 0b10 Robot/NC 30 | 15 15 Destroy Leader 24 | . 24 Successful Hack 28 | . 28 Lose Combat Pursuer 30 | . 30 Influence Decreases 232 | 15 217 Time Decay 222 | 15 207 Lost Part 10 | . 10 Squads Dispatched 1 | . 1 Investigation . | . . Extermination . | . . Reinforcement 1 | . 1 Assault . | . . Garrison . | . . Intercept . | . . Searches Triggered . | . . Construction Impeded . | . . Haulers Reinforced . | . . Active Scanning Responses . | . . Cargo Convoy Interrupts . | . . Stealth | -11 -10 --------- Run | Yrd Mat Distress Signals 1 | . 1 Communications Jammed . | . . Distress Signals . | . . Times Spotted 19 | . 19 Peak Tracking Total 6 | . 6 Tactical Retreats 2 | . 2 Traps | -11 -10 ------- Run | Yrd Mat Traps Triggered 1 | . 1 Indirectly . | . . Trap Hack Attempts . | . . Triggered . | . . Disarmed . | . . Reprogrammed . | . . Reused . | . . Traps Extracted . | . . Installed . | . . Triggered . | . . Machines | -11 -10 ---------- Run | Yrd Mat Machines Disabled . | . . Max in Single Turn . | . . Machines Repaired . | . . Machines Dismantled . | . . Machines Sabotaged . | . . Overloaded Fab Kills . | . . Hacking | -11 -10 --------- Run | Yrd Mat Machines Accessed 4 | . 4 Terminals 4 | . 4 Fabricators . | . . Repair Stations . | . . Recycling Units . | . . Scanalyzers . | . . Garrison Access . | . . Total Hacks 10 | . 10 Successful 6 | . 6 Failed 3 | . 3 Catastrophic . | . . Database Lockouts 1 | . 1 Manual 10 | . 10 Terminals 10 | . 10 Fabricators . | . . Repair Stations . | . . Recycling Units . | . . Scanalyzers . | . . Garrison Access . | . . Terminal Hacks 1 | . 1 Robot Analysis 1 | . 1 Fabricator Hacks . | . . Repair Station Hacks . | . . Recycling Unit Hacks . | . . Scanalyzer . | . . Garrison Access Hacks . | . . Unauthorized Hacks 5 | . 5 Terminals 5 | . 5 Botnet 1 | . 1 Skim 4 | . 4 Fabricators . | . . Repair Stations . | . . Recycling Units . | . . Scanalyzers . | . . Garrison Access . | . . Data Cores Recovered . | . . Used . | . . Hacking Detections 4 | . 4 Full Trace Events . | . . Feedback Events . | . . Feedback Blocked . | . . Robot Schematics Acquired . | . . Robots Built . | . . Authchips . | . . Time . | . . Total Robot Build Rating . | . . Part Schematics Acquired . | . . Parts Built . | . . Authchips . | . . Time . | . . Total Part Build Rating . | . . Parts Repaired . | . . Time . | . . Parts Recycled . | . . Recycled Matter . | . . Retrieved Matter . | . . Retrieved Components . | . . Parts Scanalyzed . | . . Part Schematics Acquired . | . . Parts Damaged . | . . Bothacking | -11 -10 ------------ Run | Yrd Mat Used RIF Installer . | . . Robots Hacked . | . . Non-combat . | . . Combat . | . . Robot Hacks Applied . | . . Relay Couplers Released . | . . Fabnet Peak Effective % . | . . Robots Rewired . | . . Allies Hacked . | . . Hacks Repelled . | . . Allies | -11 -10 -------- Run | Yrd Mat Total Allies . | . . Largest Group . | . . Highest-Rated Group . | . . Highest-Rated Ally . | . . Total Orders . | . . Ally Attacks . | . . Total Damage . | . . Kills . | . . Allies Corrupted . | . . Allies Melted . | . . Intel | -11 -10 ------- Run | Yrd Mat Active Infowar (turns) 772 | 101 671 Seismic 772 | 101 671 Robot Analysis Total 1 | . 1 Derelict Logs Recovered . | . . Drone Launches . | . . Drone Recoveries . | . . Exploration | -11 -10 ------------- Run | Yrd Mat Turns Passed 901 | 200 701 Spaces Moved 344 | 101 243 Core 3 | 3 . Treads 341 | 98 243 Legs . | . . Wheels . | . . Hover . | . . Flight . | . . Fastest Speed 50 | 50 160 Average Speed 198 | 156 215 Slowest Speed 240 | 160 240 Overloaded Moves . | . . Propulsion Burnouts . | . . Robots Hopped . | . . Potential Cave-ins . | . . Cave-ins Triggered . | . . Exploration Rate (%) 25 | 6 44 Regions Visited 1 Branch Regions . Pre-discovered Areas . | . . Known Exits Taken . | . . Unknown Exits Taken 1 | 1 . Scrap Searched . | . . Spaces Dug . | . . Terrain Destroyed . | . . Melee . | . . Projectile . | . . AOE . | . . Terrain Rammed . | . . Walls Destroyed . | . . Machines Disabled . | . . Actions | -11 -10 --------- Run | Yrd Mat Total 454 | 123 331 Wait 14 | . 14 Move 343 | 100 243 Hop . | . . Pick Up 16 | 7 9 Fast Attach 9 | 7 2 Attach 4 | . 4 Detach . | . . Swap 2 | . 2 Drop 3 | . 3 Fire 63 | 9 54 Melee . | . . Ram . | . . Kick . | . . Crush . | . . Escape Stasis . | . . Rewire . | . . Trap . | . . Miscellaneous . | . . Route ------- -11/Scrapyard -10/Materials History --------- Turn | Location | Event 9 | -11/Scrapyard | Discovered new exit (range 16) 201 | -11/Scrapyard | Entered Materials 222 | -10/Materials | Central database locked down 307 | -10/Materials | Build established: Mutant 801 | -10/Materials | Derelicts attacked the area 888 | -10/Materials | Core integrity fell below 50% 890 | -10/Materials | Core integrity fell below 20% 902 | -10/Materials | Destroyed by 4W-D06(R) with Subdweller Shrapnel Launcher Last Messages --------------- Testing... Terminal linked with 3 systems. Please expand to 1 more system! 00801_ ALERT: Derelict incursion detected, rerouting patrols to target area. 00863_ U-05 Engineer lays Concrete. 00870_ Lgt. Treads destroyed. 00870_ U-05 Engineer destroyed. 00872_ Seismic Detector destroyed. 00872_ Assault Rifle destroyed. 00878_ Lgt. Treads destroyed. 00879_ Neutrino Reactor explodes. 00883_ Lgt. Ion Engine destroyed. 00885_ SC-TJT(R) destroyed. 00885_ Switching to secondary target: 4W-D06(R). 00886_ Lgt. Assault Rifle destroyed. 00886_ ALERT: Hostiles spotted, dispatching reinforcements to Terminal M006. 00887_ EM Pulse Gun destroyed. 00894_ S-10 Pest destroyed. Map ----- +----------------------------------------------------+ | ?# #?????????????????????? | | ?# #?????????????????????? | | ?# #?????????????????????? | | ?# #?????????????????????? | | ?# #?????????????????????? | | ?# #?????????????????????? | | ?# %#?????????????????????? | | ?# #?????#######?????????? | | ?# #?????# #?????????? | | ?# ####+## #?????????# | | ?# #?????????# | | ?# ######## ??????????# | | ?# #??????? ??????????# | | ?######### ######### #??????????# | | ???????##; ; ## #??????????# | | ???????# ; ; ## #??????????+ | | ???###?# ; ; ## ^#??????????# | | ???#"""#&! ; [ ## #??????????# | | ??##"Y"#&%R; ## %=#?????????## | | ??# &] ; ## ########### | | ??# #####+## % | | ??# % | | ??# ##### % % | | ??# #??############### | | ??# #???????????????### | | ??### @ #????????????#### | | ????# #????????????#""" | | ???# ;;;?????????#"R | | ???# [ !!||#????????#""" | | ???# !!!||#????????#### | | ???# ;#??????????# | | ???## ; [ ;##??????????# | | ????###### ; ; ??????????# | | ?????????# ; ; ; ?????????# | | ??????????s##### ; "?????????### | | ?????????? ?????t # ????????????? | | ?????????? ?????? #? ????????????? | | ?????????? ?????? #??????????????# | | ?????????? ???????????????????????# | | ??????????u???????????????????????# | | ?????????? ???????????????????????# | | ??????????????????????????????????# | | ?????????????????????????????????## | | ?????????????????????????????????# | | ?????????????????????????????????# | | ?????????????????????????????????# | | ?????????????????????????????????# | | ?????????????????????????????????# | | ???????????????????????????######## | | ???????????????????????????# # | +----------------------------------------------------+ Best States ------------- Heat Dissipation 25 Energy Generation 10 Energy Capacity 125 Matter Stores 300 Matter Capacity 300 Sight Range 16 Terrain Scan Density 10 Evasion (%) 40 Recoil Reduction 2 Item Schematics ----------------- None Robot Schematics ------------------ None Fabricated ------------ Nothing Repaired ---------- Nothing Alien Tech Used ----------------- None Achievements -------------- None Challenges ------------ None Game ------ Seed ExplosiveHeavyKinecellerator Manual? 0 Play Time 00:06:51 Cumulative 58.0 hours Start 2025.07.02 @ 22:10:56 End 2025.07.02 @ 22:17:10 Sessions 1 Manual Loads 0 Difficulty Rogue Special Mode None Game No. 53 Rogue 53 Adventurer 0 Explorer 0 Win Type - Total 1 Types 1/0/0/0/0/0/0/0/0/0 Lore% 38 Gallery% 35 Achievement% 36 Wizard Run 0 Options --------- Layout 1 ASCII 0 Keyboard 1 Movement Arrows Keybinds 0 Fullscreen 1 Font 24/Smallcaps Map View 50x40 Zoom Use 0% Tactical HUD 1 Map Filters NONE Filters NONE Steam 1 RUN: 50bc14cd-9b0f-48f1-be01-8e7666a6352b